[Event "Titled Tuesday Blitz June 29 2021"]
[White "AnotherGrumpy"]
[Black "Arseniy_Nesterov"]
[WhiteElo "2553"]
[BlackElo "2819"]
[Result "1/2-1/2"]
[Round "03"]
[TimeControl "180+1"]
[Date "2021.06.29"]
[WhiteClock "0:00:12"]
[BlackClock "0:00:14"]

1. d4 {[%clk 0:03:00]}  d5 {[%clk 0:02:59]} 2. c4 {[%clk 0:03:01]}  e6 {[%clk 0:02:59]} 3. Nf3 {[%clk 0:02:57]}  Nf6 {[%clk 0:02:58]} 4. Nc3 {[%clk 0:02:58]}  c5 {[%clk 0:02:58]} 5. cxd5 {[%clk 0:02:57]}  exd5 {[%clk 0:02:59]} 6. Bg5 {[%clk 0:02:57]}  Be6 {[%clk 0:02:58]} 7. g3 {[%clk 0:02:57]}  Nc6 {[%clk 0:02:57]} 8. Bg2 {[%clk 0:02:57]}  h6 {[%clk 0:02:58]} 9. Bf4 {[%clk 0:02:54]}  cxd4 {[%clk 0:02:45]} 10. Nxd4 {[%clk 0:02:54]}  Bc5 {[%clk 0:02:45]} 11. Nxc6 {[%clk 0:02:51]}  bxc6 {[%clk 0:02:45]} 12. O-O {[%clk 0:02:51]}  O-O {[%clk 0:02:45]} 13. Rc1 {[%clk 0:02:51]}  Bb6 {[%clk 0:02:42]} 14. Na4 {[%clk 0:02:51]}  Bd7 {[%clk 0:02:42]} 15. Bd6 {[%clk 0:02:43]}  Re8 {[%clk 0:02:41]} 16. Ba3 {[%clk 0:02:32]}  Ne4 {[%clk 0:02:27]} 17. e3 {[%clk 0:02:24]}  Qg5 {[%clk 0:02:21]} 18. Nc5 {[%clk 0:02:12]}  Bg4 {[%clk 0:02:10]} 19. Nxe4 {[%clk 0:02:09]}  Rxe4 {[%clk 0:01:59]} 20. Qc2 {[%clk 0:01:29]}  Re6 {[%clk 0:01:59]} 21. b3 {[%clk 0:01:29]}  h5 {[%clk 0:01:56]} 22. h4 {[%clk 0:01:28]}  Qh6 {[%clk 0:01:49]} 23. Bc5 {[%clk 0:01:27]}  g5 {[%clk 0:01:46]} 24. f3 {[%clk 0:01:13]}  Bxc5 {[%clk 0:01:41]} 25. Qxc5 {[%clk 0:01:12]}  Bf5 {[%clk 0:01:41]} 26. e4 {[%clk 0:01:13]}  Bg6 {[%clk 0:01:26]} 27. exd5 {[%clk 0:01:13]}  cxd5 {[%clk 0:01:27]} 28. Qxd5 {[%clk 0:01:13]}  Rae8 {[%clk 0:01:23]} 29. hxg5 {[%clk 0:01:13]}  Qg7 {[%clk 0:01:19]} 30. f4 {[%clk 0:01:09]}  Be4 {[%clk 0:01:05]} 31. Bxe4 {[%clk 0:01:07]}  Rxe4 {[%clk 0:01:06]} 32. Rc7 {[%clk 0:01:04]}  Re3 {[%clk 0:01:03]} 33. Kg2 {[%clk 0:01:00]}  Re2+ {[%clk 0:00:58]} 34. Kh3 {[%clk 0:00:57]}  Rxa2 {[%clk 0:00:53]} 35. Qf5 {[%clk 0:00:46]}  Qg6 {[%clk 0:00:48]} 36. Qxg6+ {[%clk 0:00:20]}  fxg6 {[%clk 0:00:48]} 37. Rc6 {[%clk 0:00:15]}  Ree2 {[%clk 0:00:37]} 38. Rh1 {[%clk 0:00:16]}  Kf7 {[%clk 0:00:35]} 39. f5 {[%clk 0:00:14]}  gxf5 {[%clk 0:00:33]} 40. Rf6+ {[%clk 0:00:14]}  Kg7 {[%clk 0:00:34]} 41. Rxf5 {[%clk 0:00:15]}  Kg6 {[%clk 0:00:34]} 42. Rc5 {[%clk 0:00:15]}  a5 {[%clk 0:00:31]} 43. Rb5 {[%clk 0:00:14]}  Reb2 {[%clk 0:00:30]} 44. Rb6+ {[%clk 0:00:12]}  Kxg5 {[%clk 0:00:31]} 45. Rb5+ {[%clk 0:00:13]}  Kg6 {[%clk 0:00:31]} 46. g4 {[%clk 0:00:13]}  hxg4+ {[%clk 0:00:27]} 47. Kxg4 {[%clk 0:00:14]}  Rg2+ {[%clk 0:00:27]} 48. Kf4 {[%clk 0:00:13]}  Raf2+ {[%clk 0:00:21]} 49. Ke3 {[%clk 0:00:14]}  Rb2 {[%clk 0:00:16]} 50. Rh8 {[%clk 0:00:12]}  Rg3+ {[%clk 0:00:15]} 51. Kf4 {[%clk 0:00:11]}  Rgxb3 {[%clk 0:00:14]} 52. Rg5+ {[%clk 0:00:09]}  Kf6 {[%clk 0:00:11]} 53. Rh6+ {[%clk 0:00:09]}  Kf7 {[%clk 0:00:11]} 54. Rxa5 {[%clk 0:00:09]}  Rb4+ {[%clk 0:00:11]} 55. Ke3 {[%clk 0:00:09]}  R2b3+ {[%clk 0:00:11]} 56. Kd2 {[%clk 0:00:10]}  Rb2+ {[%clk 0:00:11]} 57. Kc1 {[%clk 0:00:10]}  Rb1+ {[%clk 0:00:11]} 58. Kc2 {[%clk 0:00:11]}  R1b2+ {[%clk 0:00:12]} 59. Kc3 {[%clk 0:00:11]}  R2b3+ {[%clk 0:00:12]} 60. Kc2 {[%clk 0:00:11]}  Rb2+ {[%clk 0:00:13]} 61. Kc1 {[%clk 0:00:12]}  Rb1+ {[%clk 0:00:14]} 62. Kc2 {[%clk 0:00:12]}  R1b2+ {[%clk 0:00:14]} 1/2-1/2


[Site "https://www.chess.com"]

[Event "Titled Tuesday Blitz June 29 2021"]
[White "AryanTari"]
[Black "Carnivoras"]
[WhiteElo "2964"]
[BlackElo "2649"]
[Result "1-0"]
[Round "03"]
[TimeControl "180+1"]
[Date "2021.06.29"]
[WhiteClock "0:00:20"]
[BlackClock "0:00:06"]

1. d4 {[%clk 0:03:00]}  d5 {[%clk 0:02:59]} 2. Nf3 {[%clk 0:03:01]}  Nf6 {[%clk 0:02:59]} 3. Bf4 {[%clk 0:03:01]}  Bf5 {[%clk 0:02:57]} 4. c4 {[%clk 0:03:00]}  e6 {[%clk 0:02:47]} 5. Qb3 {[%clk 0:02:58]}  Qc8 {[%clk 0:02:24]} 6. e3 {[%clk 0:02:58]}  c6 {[%clk 0:02:23]} 7. Be2 {[%clk 0:02:54]}  Be7 {[%clk 0:02:21]} 8. h3 {[%clk 0:02:54]}  O-O {[%clk 0:02:21]} 9. O-O {[%clk 0:02:54]}  Nbd7 {[%clk 0:02:14]} 10. Rc1 {[%clk 0:02:54]}  Nb6 {[%clk 0:02:00]} 11. Nbd2 {[%clk 0:02:48]}  Ne4 {[%clk 0:02:00]} 12. a4 {[%clk 0:02:42]}  Nxd2 {[%clk 0:01:52]} 13. Nxd2 {[%clk 0:02:43]}  dxc4 {[%clk 0:01:20]} 14. Nxc4 {[%clk 0:02:43]}  Nxc4 {[%clk 0:01:20]} 15. Bxc4 {[%clk 0:02:38]}  a5 {[%clk 0:01:20]} 16. d5 {[%clk 0:02:06]}  exd5 {[%clk 0:01:08]} 17. Bxd5 {[%clk 0:02:07]}  Qd7 {[%clk 0:01:02]} 18. Bc4 {[%clk 0:02:06]}  Bb4 {[%clk 0:00:59]} 19. Qd1 {[%clk 0:01:38]}  Rfd8 {[%clk 0:00:52]} 20. Qf3 {[%clk 0:01:33]}  Be6 {[%clk 0:00:49]} 21. Rd1 {[%clk 0:01:16]}  Qe8 {[%clk 0:00:42]} 22. Qe4 {[%clk 0:01:11]}  Bxc4 {[%clk 0:00:36]} 23. Qxc4 {[%clk 0:01:12]}  Rxd1+ {[%clk 0:00:35]} 24. Rxd1 {[%clk 0:01:13]}  Rd8 {[%clk 0:00:35]} 25. Rd4 {[%clk 0:01:13]}  h6 {[%clk 0:00:33]} 26. g4 {[%clk 0:01:10]}  Rxd4 {[%clk 0:00:31]} 27. Qxd4 {[%clk 0:01:11]}  c5 {[%clk 0:00:21]} 28. Qd5 {[%clk 0:00:57]}  Qxa4 {[%clk 0:00:19]} 29. Qxb7 {[%clk 0:00:57]}  Qd1+ {[%clk 0:00:19]} 30. Kg2 {[%clk 0:00:57]}  a4 {[%clk 0:00:19]} 31. Be5 {[%clk 0:00:49]}  Qb3 {[%clk 0:00:15]} 32. Qc8+ {[%clk 0:00:41]}  Kh7 {[%clk 0:00:14]} 33. Qf5+ {[%clk 0:00:42]}  Kg8 {[%clk 0:00:15]} 34. Qc8+ {[%clk 0:00:43]}  Kh7 {[%clk 0:00:15]} 35. Qf5+ {[%clk 0:00:35]}  Kg8 {[%clk 0:00:15]} 36. Qe4 {[%clk 0:00:35]}  Qe6 {[%clk 0:00:13]} 37. f4 {[%clk 0:00:31]}  Qb3 {[%clk 0:00:13]} 38. g5 {[%clk 0:00:27]}  hxg5 {[%clk 0:00:11]} 39. fxg5 {[%clk 0:00:28]}  Qe6 {[%clk 0:00:11]} 40. Qa8+ {[%clk 0:00:25]}  Kh7 {[%clk 0:00:11]} 41. Bf4 {[%clk 0:00:26]}  a3 {[%clk 0:00:08]} 42. bxa3 {[%clk 0:00:25]}  Qa2+ {[%clk 0:00:08]} 43. Kg3 {[%clk 0:00:26]}  Qxa3 {[%clk 0:00:09]} 44. Qe4+ {[%clk 0:00:25]}  g6 {[%clk 0:00:09]} 45. Be5 {[%clk 0:00:20]}  Bc3 {[%clk 0:00:06]} 46. Qh4+ {[%clk 0:00:20]} 1-0


[Site "https://www.chess.com"]

[Event "Titled Tuesday Blitz June 29 2021"]
[White "ChessLover0108"]
[Black "elextranjero00"]
[WhiteElo "2851"]
[BlackElo "2611"]
[Result "0-1"]
[Round "03"]
[TimeControl "180+1"]
[Date "2021.06.29"]
[WhiteClock "0:00:13"]
[BlackClock "0:00:12"]

1. d4 {[%clk 0:03:00]}  Nf6 {[%clk 0:02:59]} 2. c4 {[%clk 0:02:56]}  e6 {[%clk 0:02:56]} 3. Nc3 {[%clk 0:02:57]}  Bb4 {[%clk 0:02:55]} 4. Bd2 {[%clk 0:02:56]}  O-O {[%clk 0:02:52]} 5. Qc2 {[%clk 0:02:49]}  d5 {[%clk 0:02:47]} 6. Nf3 {[%clk 0:02:46]}  c5 {[%clk 0:02:42]} 7. cxd5 {[%clk 0:02:43]}  cxd4 {[%clk 0:02:32]} 8. Nxd4 {[%clk 0:02:37]}  Nxd5 {[%clk 0:02:32]} 9. Nxd5 {[%clk 0:02:37]}  Bxd2+ {[%clk 0:02:32]} 10. Qxd2 {[%clk 0:02:37]}  Qxd5 {[%clk 0:02:31]} 11. e3 {[%clk 0:02:34]}  Nc6 {[%clk 0:02:30]} 12. Nxc6 {[%clk 0:02:28]}  Qxc6 {[%clk 0:02:25]} 13. Rc1 {[%clk 0:02:28]}  Qb6 {[%clk 0:02:17]} 14. Bd3 {[%clk 0:01:59]}  Rd8 {[%clk 0:02:01]} 15. Qc2 {[%clk 0:01:55]}  h6 {[%clk 0:01:47]} 16. O-O {[%clk 0:01:54]}  Bd7 {[%clk 0:01:45]} 17. Rfd1 {[%clk 0:01:52]}  Rac8 {[%clk 0:01:29]} 18. Qe2 {[%clk 0:01:49]}  Rxc1 {[%clk 0:01:25]} 19. Rxc1 {[%clk 0:01:50]}  Bc6 {[%clk 0:01:25]} 20. Rc3 {[%clk 0:01:46]}  Qb4 {[%clk 0:01:19]} 21. a3 {[%clk 0:01:45]}  Qa5 {[%clk 0:01:11]} 22. f3 {[%clk 0:01:43]}  Qe5 {[%clk 0:01:07]} 23. h3 {[%clk 0:01:34]}  g6 {[%clk 0:01:02]} 24. Kf2 {[%clk 0:01:30]}  Kg7 {[%clk 0:01:02]} 25. e4 {[%clk 0:01:26]}  Qd4+ {[%clk 0:00:55]} 26. Qe3 {[%clk 0:01:26]}  e5 {[%clk 0:00:51]} 27. Qxd4 {[%clk 0:01:25]}  Rxd4 {[%clk 0:00:50]} 28. Ke3 {[%clk 0:01:25]}  g5 {[%clk 0:00:49]} 29. g3 {[%clk 0:01:23]}  Rd6 {[%clk 0:00:35]} 30. b4 {[%clk 0:01:22]}  a6 {[%clk 0:00:34]} 31. Rc5 {[%clk 0:01:22]}  f6 {[%clk 0:00:30]} 32. Bc2 {[%clk 0:01:12]}  Kf8 {[%clk 0:00:29]} 33. a4 {[%clk 0:01:10]}  b6 {[%clk 0:00:22]} 34. Rc3 {[%clk 0:01:09]}  Ke7 {[%clk 0:00:15]} 35. Bb3 {[%clk 0:01:05]}  Kd7 {[%clk 0:00:13]} 36. h4 {[%clk 0:00:51]}  Rd4 {[%clk 0:00:09]} 37. Rd3 {[%clk 0:00:19]}  Rxd3+ {[%clk 0:00:07]} 38. Kxd3 {[%clk 0:00:20]}  Kd6 {[%clk 0:00:05]} 39. Ke3 {[%clk 0:00:15]}  a5 {[%clk 0:00:05]} 40. b5 {[%clk 0:00:14]}  Bd7 {[%clk 0:00:05]} 41. Kd3 {[%clk 0:00:13]}  Kc5 {[%clk 0:00:05]} 42. Kc3 {[%clk 0:00:13]}  Be8 {[%clk 0:00:05]} 43. Bd1 {[%clk 0:00:12]}  Bd7 {[%clk 0:00:06]} 44. Be2 {[%clk 0:00:11]}  Be8 {[%clk 0:00:06]} 45. Bc4 {[%clk 0:00:11]}  Bd7 {[%clk 0:00:07]} 46. Bd5 {[%clk 0:00:07]}  Be8 {[%clk 0:00:07]} 47. hxg5 {[%clk 0:00:05]}  hxg5 {[%clk 0:00:07]} 48. Be6 {[%clk 0:00:05]}  Bg6 {[%clk 0:00:06]} 49. Bg4 {[%clk 0:00:04]}  Bf7 {[%clk 0:00:05]} 50. Bd7 {[%clk 0:00:04]}  Bg8 {[%clk 0:00:04]} 51. Be8 {[%clk 0:00:04]}  Be6 {[%clk 0:00:04]} 52. g4 {[%clk 0:00:03]}  Bc4 {[%clk 0:00:04]} 53. Bg6 {[%clk 0:00:03]}  Be2 {[%clk 0:00:04]} 54. Bf5 {[%clk 0:00:03]}  Bxf3 {[%clk 0:00:04]} 55. Kb3 {[%clk 0:00:02]}  Bd1+ {[%clk 0:00:04]} 56. Ka3 {[%clk 0:00:01]}  Kd4 {[%clk 0:00:05]} 57. Kb2 {[%clk 0:00:02]}  Bxa4 {[%clk 0:00:04]} 58. Bd7 {[%clk 0:00:01]}  Bd1 {[%clk 0:00:04]} 59. Bc6 {[%clk 0:00:01]}  Bf3 {[%clk 0:00:05]} 60. Bd7 {[%clk 0:00:02]}  Bxe4 {[%clk 0:00:05]} 61. Be6 {[%clk 0:00:02]}  Bd5 {[%clk 0:00:05]} 62. Kc2 {[%clk 0:00:03]}  Bxe6 {[%clk 0:00:05]} 63. Kd2 {[%clk 0:00:04]}  Bxg4 {[%clk 0:00:05]} 64. Ke1 {[%clk 0:00:03]}  Bd7 {[%clk 0:00:06]} 65. Kf2 {[%clk 0:00:04]}  Bxb5 {[%clk 0:00:07]} 66. Kg3 {[%clk 0:00:05]}  Bc6 {[%clk 0:00:07]} 67. Kg4 {[%clk 0:00:06]}  b5 {[%clk 0:00:08]} 68. Kf5 {[%clk 0:00:06]}  b4 {[%clk 0:00:09]} 69. Kg6 {[%clk 0:00:07]}  a4 {[%clk 0:00:10]} 70. Kf5 {[%clk 0:00:08]}  b3 {[%clk 0:00:11]} 71. Ke6 {[%clk 0:00:09]}  b2 {[%clk 0:00:12]} 72. Kf5 {[%clk 0:00:10]}  a3 {[%clk 0:00:13]} 73. Ke6 {[%clk 0:00:11]}  a2 {[%clk 0:00:14]} 74. Kf5 {[%clk 0:00:11]}  b1=Q+ {[%clk 0:00:15]} 75. Ke6 {[%clk 0:00:12]}  Qb3+ {[%clk 0:00:15]} 76. Ke7 {[%clk 0:00:13]}  a1=Q {[%clk 0:00:14]} 77. Kf8 {[%clk 0:00:13]}  Qa8+ {[%clk 0:00:13]} 78. Kg7 {[%clk 0:00:14]}  Qbb7+ {[%clk 0:00:12]} 79. Kg6 {[%clk 0:00:13]}  Qg8+ {[%clk 0:00:12]} 80. Kf5 {[%clk 0:00:13]}  Be4+ {[%clk 0:00:12]} 81. Kg4 {[%clk 0:00:13]}  Qd7+ {[%clk 0:00:12]} 82. Kg3 {[%clk 0:00:14]}  Qb3+ {[%clk 0:00:12]} 83. Kf2 {[%clk 0:00:13]}  Qf5+ {[%clk 0:00:12]} 0-1


[Site "https://www.chess.com"]

[Event "Titled Tuesday Blitz June 29 2021"]
[White "DeTimmerman"]
[Black "PolandHussars"]
[WhiteElo "2791"]
[BlackElo "2551"]
[Result "1-0"]
[Round "03"]
[TimeControl "180+1"]
[Date "2021.06.29"]
[WhiteClock "0:01:36"]
[BlackClock "0:01:02"]

1. b4 {[%clk 0:03:00]}  d5 {[%clk 0:02:56]} 2. Bb2 {[%clk 0:03:01]}  Bg4 {[%clk 0:02:57]} 3. Nf3 {[%clk 0:03:01]}  Nd7 {[%clk 0:02:54]} 4. b5 {[%clk 0:03:01]}  e6 {[%clk 0:02:54]} 5. a4 {[%clk 0:03:01]}  Ngf6 {[%clk 0:02:54]} 6. e3 {[%clk 0:03:02]}  Bd6 {[%clk 0:02:54]} 7. c4 {[%clk 0:03:02]}  O-O {[%clk 0:02:54]} 8. Be2 {[%clk 0:03:02]}  Re8 {[%clk 0:02:54]} 9. cxd5 {[%clk 0:03:01]}  exd5 {[%clk 0:02:52]} 10. O-O {[%clk 0:03:02]}  a6 {[%clk 0:02:52]} 11. Nc3 {[%clk 0:03:01]}  axb5 {[%clk 0:02:51]} 12. axb5 {[%clk 0:03:02]}  Rxa1 {[%clk 0:02:51]} 13. Qxa1 {[%clk 0:03:03]}  Nc5 {[%clk 0:02:47]} 14. h3 {[%clk 0:03:02]}  Bh5 {[%clk 0:02:46]} 15. Nd4 {[%clk 0:02:54]}  Bxe2 {[%clk 0:02:43]} 16. Ncxe2 {[%clk 0:02:55]}  Nd3 {[%clk 0:02:33]} 17. Nf5 {[%clk 0:02:48]}  Nxb2 {[%clk 0:02:31]} 18. Qxb2 {[%clk 0:02:49]}  Be5 {[%clk 0:02:25]} 19. d4 {[%clk 0:02:48]}  Bd6 {[%clk 0:02:22]} 20. Nxd6 {[%clk 0:02:46]}  Qxd6 {[%clk 0:02:23]} 21. Ra1 {[%clk 0:02:37]}  Ne4 {[%clk 0:02:18]} 22. Nc3 {[%clk 0:02:37]}  Nf6 {[%clk 0:02:08]} 23. Qb3 {[%clk 0:02:32]}  h5 {[%clk 0:02:04]} 24. Ra7 {[%clk 0:02:20]}  Qb6 {[%clk 0:02:03]} 25. Qa3 {[%clk 0:02:19]}  c6 {[%clk 0:01:50]} 26. bxc6 {[%clk 0:02:07]}  Qxc6 {[%clk 0:01:41]} 27. Qb3 {[%clk 0:01:52]}  Rc8 {[%clk 0:01:36]} 28. Ne2 {[%clk 0:01:50]}  Rc7 {[%clk 0:01:26]} 29. Nf4 {[%clk 0:01:45]}  g6 {[%clk 0:01:23]} 30. Nd3 {[%clk 0:01:44]}  Ne4 {[%clk 0:01:16]} 31. Ra1 {[%clk 0:01:36]}  Qc3 {[%clk 0:01:10]} 32. Qxc3 {[%clk 0:01:37]}  Rxc3 {[%clk 0:01:11]} 33. Nb4 {[%clk 0:01:37]}  Rc2 {[%clk 0:01:02]} 34. Nxc2 {[%clk 0:01:36]} 1-0


[Site "https://www.chess.com"]

[Event "Titled Tuesday Blitz June 29 2021"]
[White "GM_dmitrij"]
[Black "Aemulus20"]
[WhiteElo "2905"]
[BlackElo "2622"]
[Result "1-0"]
[Round "03"]
[TimeControl "180+1"]
[Date "2021.06.29"]
[WhiteClock "0:01:37"]
[BlackClock "0:00:38"]

1. Nf3 {[%clk 0:03:00]}  c5 {[%clk 0:02:58]} 2. e4 {[%clk 0:02:58]}  d6 {[%clk 0:02:58]} 3. c3 {[%clk 0:02:56]}  Nf6 {[%clk 0:02:58]} 4. Be2 {[%clk 0:02:55]}  g6 {[%clk 0:02:55]} 5. O-O {[%clk 0:02:55]}  Bg7 {[%clk 0:02:54]} 6. Bb5+ {[%clk 0:02:55]}  Bd7 {[%clk 0:02:50]} 7. Bxd7+ {[%clk 0:02:54]}  Qxd7 {[%clk 0:02:50]} 8. Re1 {[%clk 0:02:55]}  Nc6 {[%clk 0:02:48]} 9. d4 {[%clk 0:02:54]}  cxd4 {[%clk 0:02:49]} 10. cxd4 {[%clk 0:02:55]}  d5 {[%clk 0:02:49]} 11. e5 {[%clk 0:02:56]}  Ne4 {[%clk 0:02:49]} 12. Nc3 {[%clk 0:02:54]}  Nxc3 {[%clk 0:02:48]} 13. bxc3 {[%clk 0:02:55]}  e6 {[%clk 0:02:47]} 14. Bf4 {[%clk 0:02:48]}  Rc8 {[%clk 0:02:45]} 15. h4 {[%clk 0:02:38]}  Na5 {[%clk 0:02:43]} 16. Rc1 {[%clk 0:02:37]}  Nc4 {[%clk 0:02:41]} 17. h5 {[%clk 0:02:33]}  b6 {[%clk 0:02:35]} 18. Nh2 {[%clk 0:02:29]}  Bf8 {[%clk 0:02:23]} 19. Ng4 {[%clk 0:02:26]}  Be7 {[%clk 0:02:23]} 20. Qf3 {[%clk 0:02:21]}  gxh5 {[%clk 0:02:19]} 21. Nh6 {[%clk 0:02:18]}  h4 {[%clk 0:02:05]} 22. Qh5 {[%clk 0:02:13]}  Ba3 {[%clk 0:01:58]} 23. Rc2 {[%clk 0:01:56]}  Rc7 {[%clk 0:01:46]} 24. Bg5 {[%clk 0:01:53]}  Qa4 {[%clk 0:01:30]} 25. Rce2 {[%clk 0:01:53]}  Qa5 {[%clk 0:01:13]} 26. Qf3 {[%clk 0:01:42]}  Bf8 {[%clk 0:00:44]} 27. Qf6 {[%clk 0:01:38]}  Bxh6 {[%clk 0:00:38]} 28. Qd8# {[%clk 0:01:37]} 1-0


[Site "https://www.chess.com"]

[Event "Titled Tuesday Blitz June 29 2021"]
[White "Gabrielian_Artur"]
[Black "OhanyanEminChess"]
[WhiteElo "2823"]
[BlackElo "2566"]
[Result "0-1"]
[Round "03"]
[TimeControl "180+1"]
[Date "2021.06.29"]
[WhiteClock "0:00:14"]
[BlackClock "0:00:02"]

1. e4 {[%clk 0:03:00]}  e5 {[%clk 0:02:59]} 2. Nc3 {[%clk 0:03:00]}  Nf6 {[%clk 0:02:58]} 3. g3 {[%clk 0:03:00]}  d5 {[%clk 0:02:55]} 4. exd5 {[%clk 0:03:00]}  Nxd5 {[%clk 0:02:56]} 5. Bg2 {[%clk 0:03:01]}  Nxc3 {[%clk 0:02:56]} 6. bxc3 {[%clk 0:03:02]}  Bd6 {[%clk 0:02:56]} 7. Nf3 {[%clk 0:03:02]}  O-O {[%clk 0:02:56]} 8. O-O {[%clk 0:03:02]}  Nc6 {[%clk 0:02:56]} 9. Re1 {[%clk 0:03:02]}  Re8 {[%clk 0:02:49]} 10. d4 {[%clk 0:03:00]}  exd4 {[%clk 0:02:44]} 11. Rxe8+ {[%clk 0:02:59]}  Qxe8 {[%clk 0:02:45]} 12. cxd4 {[%clk 0:03:00]}  Bg4 {[%clk 0:02:38]} 13. h3 {[%clk 0:02:45]}  Bh5 {[%clk 0:02:36]} 14. Rb1 {[%clk 0:02:43]}  b6 {[%clk 0:02:25]} 15. Rb3 {[%clk 0:02:39]}  Rd8 {[%clk 0:02:07]} 16. Re3 {[%clk 0:02:35]}  Qf8 {[%clk 0:02:07]} 17. c3 {[%clk 0:02:35]}  Na5 {[%clk 0:02:03]} 18. Qe2 {[%clk 0:02:31]}  Bg6 {[%clk 0:01:53]} 19. Ne5 {[%clk 0:02:26]}  c5 {[%clk 0:01:45]} 20. Nxg6 {[%clk 0:02:26]}  hxg6 {[%clk 0:01:36]} 21. d5 {[%clk 0:02:21]}  Nb7 {[%clk 0:01:23]} 22. c4 {[%clk 0:02:18]}  Bb8 {[%clk 0:01:19]} 23. Bb2 {[%clk 0:02:10]}  Nd6 {[%clk 0:01:13]} 24. h4 {[%clk 0:02:04]}  Nf5 {[%clk 0:01:01]} 25. Re4 {[%clk 0:02:03]}  Bd6 {[%clk 0:00:59]} 26. h5 {[%clk 0:02:01]}  Nd4 {[%clk 0:00:46]} 27. Bxd4 {[%clk 0:01:58]}  cxd4 {[%clk 0:00:47]} 28. hxg6 {[%clk 0:01:58]}  fxg6 {[%clk 0:00:20]} 29. Bh3 {[%clk 0:01:58]}  Qf6 {[%clk 0:00:19]} 30. Be6+ {[%clk 0:01:56]}  Kf8 {[%clk 0:00:20]} 31. Rh4 {[%clk 0:01:55]}  Qe5 {[%clk 0:00:15]} 32. Qf3+ {[%clk 0:01:33]}  Qf6 {[%clk 0:00:15]} 33. Qe4 {[%clk 0:01:34]}  Ke7 {[%clk 0:00:11]} 34. Kg2 {[%clk 0:01:18]}  Rf8 {[%clk 0:00:08]} 35. f4 {[%clk 0:01:17]}  Kd8 {[%clk 0:00:08]} 36. Rg4 {[%clk 0:01:15]}  d3 {[%clk 0:00:07]} 37. Qxd3 {[%clk 0:01:14]}  Qb2+ {[%clk 0:00:07]} 38. Kf3 {[%clk 0:01:14]}  Qa1 {[%clk 0:00:05]} 39. Rxg6 {[%clk 0:01:04]}  Qh1+ {[%clk 0:00:05]} 40. Ke2 {[%clk 0:00:37]}  Qg2+ {[%clk 0:00:04]} 41. Kd1 {[%clk 0:00:37]}  Rh8 {[%clk 0:00:03]} 42. Qe2 {[%clk 0:00:26]}  Rh1+ {[%clk 0:00:02]} 43. Kd2 {[%clk 0:00:26]}  Bb4+ {[%clk 0:00:02]} 44. Kd3 {[%clk 0:00:26]}  Qg1 {[%clk 0:00:02]} 45. Rg5 {[%clk 0:00:10]}  Qb1+ {[%clk 0:00:02]} 46. Ke3 {[%clk 0:00:10]}  Bc5+ {[%clk 0:00:02]} 47. Kf3 {[%clk 0:00:10]}  Re1 {[%clk 0:00:01]} 48. Qd2 {[%clk 0:00:10]}  Rf1+ {[%clk 0:00:01]} 49. Kg4 {[%clk 0:00:10]}  Rf2 {[%clk 0:00:02]} 50. Qc3 {[%clk 0:00:10]}  Qd1+ {[%clk 0:00:02]} 51. Kf5 {[%clk 0:00:10]}  Qb1+ {[%clk 0:00:01]} 52. Kg4 {[%clk 0:00:10]}  Qd1+ {[%clk 0:00:01]} 53. Kh3 {[%clk 0:00:11]}  Rf1 {[%clk 0:00:01]} 54. g4 {[%clk 0:00:08]}  Rh1+ {[%clk 0:00:01]} 55. Kg3 {[%clk 0:00:09]}  Qg1+ {[%clk 0:00:01]} 56. Kf3 {[%clk 0:00:10]}  Qf2+ {[%clk 0:00:01]} 57. Ke4 {[%clk 0:00:11]}  Qe2+ {[%clk 0:00:01]} 58. Kf5 {[%clk 0:00:12]}  Rh8 {[%clk 0:00:01]} 59. Rxg7 {[%clk 0:00:11]}  Rf8+ {[%clk 0:00:01]} 60. Kg6 {[%clk 0:00:12]}  Qe4+ {[%clk 0:00:01]} 61. f5 {[%clk 0:00:13]}  Qxg4+ {[%clk 0:00:01]} 62. Kh6 {[%clk 0:00:13]}  Rh8+ {[%clk 0:00:01]} 63. Rh7 {[%clk 0:00:14]}  Bf8+ {[%clk 0:00:02]} 0-1


[Site "https://www.chess.com"]

[Event "Titled Tuesday Blitz June 29 2021"]
[White "GianmarcoVaR"]
[Black "Hikaru"]
[WhiteElo "2676"]
[BlackElo "3162"]
[Result "0-1"]
[Round "03"]
[TimeControl "180+1"]
[Date "2021.06.29"]
[WhiteClock "0:00:01"]
[BlackClock "0:00:45"]

1. d4 {[%clk 0:03:00]}  g6 {[%clk 0:02:58]} 2. e4 {[%clk 0:02:58]}  Bg7 {[%clk 0:02:57]} 3. c3 {[%clk 0:02:59]}  c6 {[%clk 0:02:56]} 4. Nf3 {[%clk 0:02:56]}  d5 {[%clk 0:02:56]} 5. Bd3 {[%clk 0:02:55]}  Bg4 {[%clk 0:02:52]} 6. Nbd2 {[%clk 0:02:50]}  e6 {[%clk 0:02:48]} 7. Qb3 {[%clk 0:02:43]}  Qb6 {[%clk 0:02:45]} 8. Ne5 {[%clk 0:02:38]}  Bh5 {[%clk 0:02:25]} 9. h3 {[%clk 0:02:10]}  f6 {[%clk 0:02:15]} 10. Nef3 {[%clk 0:02:02]}  g5 {[%clk 0:02:01]} 11. e5 {[%clk 0:01:56]}  Qxb3 {[%clk 0:01:56]} 12. axb3 {[%clk 0:01:56]}  fxe5 {[%clk 0:01:50]} 13. dxe5 {[%clk 0:01:34]}  h6 {[%clk 0:01:44]} 14. g4 {[%clk 0:01:29]}  Bf7 {[%clk 0:01:44]} 15. h4 {[%clk 0:01:15]}  gxh4 {[%clk 0:01:43]} 16. Nf1 {[%clk 0:01:11]}  Nd7 {[%clk 0:01:43]} 17. Bf4 {[%clk 0:01:11]}  Ne7 {[%clk 0:01:43]} 18. Rxh4 {[%clk 0:01:11]}  Bg6 {[%clk 0:01:36]} 19. Be2 {[%clk 0:01:05]}  c5 {[%clk 0:01:33]} 20. Ng3 {[%clk 0:01:02]}  Nc6 {[%clk 0:01:28]} 21. Bb5 {[%clk 0:01:01]}  O-O {[%clk 0:00:53]} 22. Bxc6 {[%clk 0:00:53]}  bxc6 {[%clk 0:00:54]} 23. Nh5 {[%clk 0:00:36]}  Bxh5 {[%clk 0:00:51]} 24. gxh5 {[%clk 0:00:37]}  Rf5 {[%clk 0:00:48]} 25. Rg4 {[%clk 0:00:30]}  Kh7 {[%clk 0:00:47]} 26. O-O-O {[%clk 0:00:16]}  Raf8 {[%clk 0:00:44]} 27. Rdg1 {[%clk 0:00:16]}  R8f7 {[%clk 0:00:45]} 28. Nh4 {[%clk 0:00:01]}  Rxf4 {[%clk 0:00:45]} 0-1


[Site "https://www.chess.com"]